fUSD/lending_fUSD_20260630
["ID","MTS","AMOUNT","RATE_DAILY","PERIOD"]
[426699950,1782750648000,-576.43989485,0.00033771,2]
[426699963,1782750648000,-584.66801755,0.00033771,2]
[426699946,1782750648000,-954.30228826,0.00033771,2]
[426699922,1782750648000,-300.0,0.00033771,2]
[426699945,1782750648000,-300.0,0.00033771,2]
[426699930,1782750648000,-303.73373497,0.00033771,2]
[426699923,1782750648000,-300.0,0.00033771,2]
[426699921,1782750648000,-300.0,0.00033771,2]
[426699929,1782750648000,-300.0,0.00033771,2]
[426699926,1782750648000,-300.0,0.00033771,2]
[426699924,1782750648000,-536.77715252,0.00033771,2]
[426699925,1782750648000,-300.0,0.00033771,2]
[426699927,1782750648000,-730.12015411,0.00033771,2]
[426699928,1782750648000,-300.0,0.00033771,2]
[426699935,1782750648000,-300.0,0.00033771,2]
[426699932,1782750648000,-302.16203863,0.00033771,2]
[426699933,1782750648000,-300.0,0.00033771,2]
[426699937,1782750648000,-300.0,0.00033771,2]
[426699938,1782750648000,-300.0,0.00033771,2]
[426699931,1782750648000,-300.0,0.00033771,2]
[426699934,1782750648000,-300.0,0.00033771,2]
[426699936,1782750648000,-300.0,0.00033771,2]
[426699941,1782750648000,-345.7536,0.00033771,2]
[426699939,1782750648000,-300.0,0.00033771,2]
[426699940,1782750648000,-300.0,0.00033771,2]
[426699943,1782750648000,-300.0,0.00033771,2]
[426699944,1782750648000,-300.0,0.00033771,2]
[426699942,1782750648000,-300.0,0.00033771,2]
[426699947,1782750648000,-300.0,0.00033771,2]
[426699953,1782750648000,-300.0,0.00033771,2]
[426699951,1782750648000,-300.0,0.00033771,2]
[426699952,1782750648000,-311.22255108,0.00033771,2]
[426699954,1782750648000,-569.01654071,0.00033771,2]
[426699981,1782750648000,-500.0,0.00033781,60]
[426699973,1782750648000,-1825.93,0.00033773,2]
[426699992,1782750648000,-500.0,0.00033973,7]
[426700016,1782750648000,-500.0,0.00033973,7]
[426700018,1782750648000,-500.0,0.00033973,7]
[426700019,1782750648000,-500.0,0.00033973,7]
[426700028,1782750648000,-500.0,0.00033973,7]
[426700017,1782750648000,-500.0,0.00033973,7]
[426700021,1782750648000,-500.0,0.00033973,7]
[426700026,1782750648000,-500.0,0.00033973,7]
[426700020,1782750648000,-500.0,0.00033973,7]
[426700027,1782750648000,-500.0,0.00033973,7]
[426700025,1782750648000,-500.0,0.00033973,7]
[426700023,1782750648000,-500.0,0.00033973,7]
[426700022,1782750648000,-500.0,0.00033973,7]
[426700024,1782750648000,-500.0,0.00033973,7]
[426700029,1782750648000,-500.0,0.00033973,7]
[426700032,1782750648000,-500.0,0.00033973,7]
[426700031,1782750648000,-500.0,0.00033973,7]
[426700030,1782750648000,-500.0,0.00033973,7]
[426700041,1782750648000,-500.0,0.00033973,7]
[426700034,1782750648000,-500.0,0.00033973,7]
[426700039,1782750648000,-500.0,0.00033973,7]
[426700036,1782750648000,-500.0,0.00033973,7]
[426700038,1782750648000,-500.0,0.00033973,7]
[426700035,1782750648000,-500.0,0.00033973,7]
[426700033,1782750648000,-500.0,0.00033973,7]
[426700040,1782750648000,-500.0,0.00033973,7]
[426699983,1782750648000,-176.4163442,0.00033781,60]
[426700042,1782750648000,-500.0,0.00033973,7]
[426700014,1782750648000,-500.0,0.00033973,7]
[426700007,1782750648000,-500.0,0.00033973,7]
[426700037,1782750648000,-500.0,0.00033973,7]
[426700011,1782750648000,-500.0,0.00033973,7]
[426700015,1782750648000,-500.0,0.00033973,7]
[426699989,1782750648000,-9155.89,0.00033939,7]
[426699986,1782750648000,-292.79,0.00033886,3]
[426699985,1782750648000,-2000.0,0.00033808,7]
[426699984,1782750648000,-1652.57,0.000338,30]
[426699988,1782750648000,-151.94379609,0.00033929,2]
[426699990,1782750648000,-546.7,0.00033943,7]
[426699991,1782750648000,-312.03666516,0.00033946,2]
[426699982,1782750648000,-516.6411293,0.00033781,60]
[426699993,1782750648000,-500.0,0.00033973,7]
[426699994,1782750648000,-500.0,0.00033973,7]
[426700002,1782750648000,-500.0,0.00033973,7]
[426700004,1782750648000,-500.0,0.00033973,7]
[426700003,1782750648000,-500.0,0.00033973,7]
[426699987,1782750648000,-368.51,0.000339,120]
[426699996,1782750648000,-500.0,0.00033973,7]
[426699997,1782750648000,-500.0,0.00033973,7]
[426700012,1782750648000,-500.0,0.00033973,7]
[426700010,1782750648000,-500.0,0.00033973,7]
[426700006,1782750648000,-500.0,0.00033973,7]
[426700008,1782750648000,-500.0,0.00033973,7]
[426700009,1782750648000,-500.0,0.00033973,7]
[426700013,1782750648000,-500.0,0.00033973,7]
[426700000,1782750648000,-500.0,0.00033973,7]
[426699995,1782750648000,-500.0,0.00033973,7]
[426700001,1782750648000,-500.0,0.00033973,7]
[426699998,1782750648000,-500.0,0.00033973,7]
[426700005,1782750648000,-500.0,0.00033973,7]
[426699999,1782750648000,-500.0,0.00033973,7]
[426700079,1782750649000,-793.99279464,0.00034028,2]
[426700078,1782750649000,-150.0,0.00034002,2]
[426700082,1782750649000,-785.0,0.00034028,2]
[426700081,1782750649000,-785.0,0.00034028,2]
[426700077,1782750649000,-800.0,0.00034,7]
[426700076,1782750649000,-800.0,0.00034,7]
[426700074,1782750649000,-1409.14623844,0.00033995,2]
[426700075,1782750649000,-800.0,0.00034,7]
[426700072,1782750649000,-1596.36357333,0.00033995,2]
[426700085,1782750649000,-198.03,0.0003429,120]
[426700080,1782750649000,-785.0,0.00034028,2]
[426700083,1782750649000,-302.0,0.00034246,14]
[426700096,1782750649000,-1500.0,0.000344,7]
[426700088,1782750649000,-785.0,0.00034398,2]
[426700090,1782750649000,-785.0,0.00034398,2]
[426700089,1782750649000,-785.0,0.00034398,2]
[426700087,1782750649000,-470.53,0.000343,7]
[426700094,1782750649000,-785.0,0.00034398,2]
[426700092,1782750649000,-785.0,0.00034398,2]
[426700095,1782750649000,-785.0,0.00034398,2]
[426700086,1782750649000,-500.0,0.00034297,19]
[426700091,1782750649000,-785.0,0.00034398,2]
[426700093,1782750649000,-785.0,0.00034398,2]
[426700098,1782750649000,-200.0,0.0003443,10]
[426700073,1782750649000,-1539.14067201,0.00033995,2]
[426700084,1782750649000,-151.94379609,0.00034274,2]
[426700071,1782750649000,-1428.90156162,0.00033995,2]
[426700056,1782750649000,-500.0,0.00033973,7]
[426700069,1782750649000,-500.0,0.00033973,7]
[426700054,1782750649000,-500.0,0.00033973,7]
[426700051,1782750649000,-500.0,0.00033973,7]
[426700043,1782750649000,-500.0,0.00033973,7]
[426700050,1782750649000,-500.0,0.00033973,7]
[426700045,1782750649000,-500.0,0.00033973,7]
[426700053,1782750649000,-500.0,0.00033973,7]
[426700052,1782750649000,-500.0,0.00033973,7]
[426700047,1782750649000,-500.0,0.00033973,7]
[426700046,1782750649000,-500.0,0.00033973,7]
[426700055,1782750649000,-500.0,0.00033973,7]
[426700108,1782750649000,-385.0,0.00034762,30]
[426700048,1782750649000,-500.0,0.00033973,7]
[426700049,1782750649000,-500.0,0.00033973,7]
[426700058,1782750649000,-500.0,0.00033973,7]
[426700063,1782750649000,-500.0,0.00033973,7]
[426700059,1782750649000,-500.0,0.00033973,7]
[426700065,1782750649000,-500.0,0.00033973,7]
[426700062,1782750649000,-500.0,0.00033973,7]
[426700060,1782750649000,-500.0,0.00033973,7]
[426700061,1782750649000,-500.0,0.00033973,7]
[426700057,1782750649000,-500.0,0.00033973,7]
[426700064,1782750649000,-500.0,0.00033973,7]
[426700066,1782750649000,-500.0,0.00033973,7]
[426700068,1782750649000,-500.0,0.00033973,7]
[426700067,1782750649000,-500.0,0.00033973,7]
[426700070,1782750649000,-526.2791716,0.00033973,7]
[426700097,1782750649000,-330.43,0.000344,7]
[426700044,1782750649000,-500.0,0.00033973,7]
[426700104,1782750649000,-9155.89,0.00034624,7]
[426700128,1782750649000,-5000.0,0.00034813,2]
[426700127,1782750649000,-5000.0,0.00034813,2]
[426700134,1782750649000,-200.0,0.00034916,7]
[426700140,1782750649000,-5725.99032933,0.00034989,2]
[426700138,1782750649000,-350.02,0.00034966,3]
[426700137,1782750649000,-151.94379609,0.00034963,2]
[426700143,1782750649000,-1500.0,0.00035,2]
[426700135,1782750649000,-200.0,0.00034916,7]
[426700142,1782750649000,-704.7938,0.00035,2]
[426700136,1782750649000,-200.0,0.00034916,7]
[426700139,1782750649000,-186.84,0.00034985,60]
[426700141,1782750649000,-227.09549037,0.00034989,2]
[426700144,1782750649000,-1500.0,0.00035,2]
[426700146,1782750649000,-1500.0,0.00035,2]
[426700154,1782750649000,-182.861763,0.00035015,10]
[426700156,1782750649000,-151.94379609,0.00035308,2]
[426700145,1782750649000,-1500.0,0.00035,2]
[426700148,1782750649000,-1500.0,0.00035,2]
[426700147,1782750649000,-1500.0,0.00035,2]
[426700150,1782750649000,-800.0,0.00035,7]
[426700152,1782750649000,-800.0,0.00035,7]
[426700149,1782750649000,-425.34860366,0.00035,2]
[426700153,1782750649000,-1500.0,0.00035,2]
[426700151,1782750649000,-800.0,0.00035,7]
[426700106,1782750649000,-185.0,0.00034762,30]
[426700130,1782750649000,-5000.0,0.00034813,2]
[426700131,1782750649000,-152.0,0.00034825,4]
[426700155,1782750649000,-4591.0,0.00035129,10]
[426700125,1782750649000,-599.17,0.000348,2]
[426700126,1782750649000,-6896.2026673,0.00034813,2]
[426700107,1782750649000,-437.0,0.00034762,30]
[426700102,1782750649000,-415.391164,0.00034578,7]
[426700099,1782750649000,-800.0,0.000345,7]
[426700103,1782750649000,-151.94379609,0.00034618,2]
[426700100,1782750649000,-800.0,0.000345,7]
[426700105,1782750649000,-208.0,0.00034762,30]
[426700109,1782750649000,-150.00000001,0.00034767,120]
[426700113,1782750649000,-150.84643432,0.00034767,120]
[426700110,1782750649000,-150.0,0.00034767,120]
[426700112,1782750649000,-150.0,0.00034767,120]
[426700111,1782750649000,-150.00000002,0.00034767,120]
[426700116,1782750649000,-238.810634,0.00034767,120]
[426700101,1782750649000,-800.0,0.000345,7]
[426700114,1782750649000,-150.0,0.00034767,120]
[426700129,1782750649000,-5000.0,0.00034813,2]
[426700119,1782750649000,-113009.75569812,0.00034785,7]
[426700124,1782750649000,-269.5494864,0.000348,120]
[426700123,1782750649000,-192.27096766,0.000348,120]
[426700121,1782750649000,-504.2741242,0.00034786,31]
[426700133,1782750649000,-1652.57,0.000349,30]
[426700132,1782750649000,-186.83,0.00034885,60]
[426700122,1782750649000,-1500.0,0.00034795,2]
[426700115,1782750649000,-299.11029482,0.00034767,120]
[426700118,1782750649000,-188852.62057075,0.00034785,7]
[426700117,1782750649000,-2280.56935788,0.00034785,7]
[426700120,1782750649000,-186.83,0.00034785,60]
[426700181,1782750650000,-473664.082645,0.0003564,2]
[426700178,1782750650000,-520.16644751,0.00035616,7]
[426700177,1782750650000,-500.0,0.00035616,7]
[426700179,1782750650000,-179.232993,0.00035617,120]
[426700180,1782750650000,-151.0,0.00035637,14]
[426700175,1782750650000,-481661.23557258,0.00035593,2]
[426700185,1782750650000,-423.0,0.00035655,7]
[426700188,1782750650000,-372.5023922,0.00035661,120]
[426700182,1782750650000,-194.31,0.00035649,2]
[426700184,1782750650000,-151.94379609,0.00035652,2]
[426700186,1782750650000,-170.0,0.00035655,7]
[426700190,1782750650000,-305.1348986,0.00035661,120]
[426700189,1782750650000,-152.1687274,0.00035661,120]
[426700176,1782750650000,-178.37,0.00035616,2]
[426700187,1782750650000,-296.0758621,0.00035661,120]
[426700183,1782750650000,-150.0,0.00035651,60]
[426700174,1782750650000,-447.45865699,0.00035549,2]
[426700161,1782750650000,-415.391164,0.00035421,7]
[426700173,1782750650000,-800.0,0.000355,7]
[426700192,1782750650000,-516.6411293,0.00035661,120]
[426700157,1782750650000,-9155.91,0.00035309,7]
[426700159,1782750650000,-2000.0,0.00035356,7]
[426700162,1782750650000,-346.36363636,0.00035448,2]
[426700163,1782750650000,-100000.0,0.00035455,90]
[426700160,1782750650000,-200.0,0.000354,11]
[426700164,1782750650000,-37794.80781514,0.00035455,60]
[426700167,1782750650000,-5800.0,0.00035473,2]
[426700158,1782750650000,-500.0,0.00035313,20]
[426700165,1782750650000,-69890.74244101,0.00035455,30]
[426700166,1782750650000,-152.5325826,0.00035457,15]
[426700169,1782750650000,-502.0,0.00035487,30]
[426700170,1782750650000,-5800.0,0.0003549,2]
[426700171,1782750650000,-800.0,0.000355,7]
[426700168,1782750650000,-5800.0,0.00035482,2]
[426700172,1782750650000,-800.0,0.000355,7]
[426700202,1782750650000,-25000.0,0.00035713,3]
[426700208,1782750650000,-453.0,0.00035782,11]
[426700203,1782750650000,-25000.0,0.00035713,3]
[426700214,1782750650000,-269.5494864,0.000359,120]
[426700216,1782750650000,-2000.0,0.000359,7]
[426700218,1782750650000,-391.6,0.00035987,10]
[426700217,1782750650000,-350.01,0.00035951,3]
[426700220,1782750650000,-2280.56935788,0.00035992,7]
[426700221,1782750650000,-188852.62057075,0.00035992,7]
[426700222,1782750650000,-54586.32123811,0.00035992,7]
[426700219,1782750650000,-2280.56935788,0.00035992,7]
[426700224,1782750650000,-5075.78,0.00035992,7]
[426700223,1782750650000,-3384.22,0.00027449,7]
[426700225,1782750650000,-37927.24391116,0.00035992,7]
[426700194,1782750650000,-341.65706943,0.00035672,120]
[426700227,1782750650000,-2847.47573457,0.00035992,7]
[426700226,1782750650000,-1855.60737794,0.00035992,7]
[426700229,1782750650000,-1203.81196405,0.00035992,7]
[426700215,1782750650000,-300.0,0.000359,13]
[426700212,1782750650000,-6087.0,0.00035877,2]
[426700228,1782750650000,-6215.10413544,0.00035992,7]
[426700205,1782750650000,-13260.57721285,0.00035713,3]
[426700209,1782750650000,-200.0,0.00035804,10]
[426700193,1782750650000,-176.4163441,0.00035661,120]
[426700200,1782750650000,-25000.0,0.00035713,3]
[426700196,1782750650000,-379.7124011,0.00035672,120]
[426700195,1782750650000,-559.46099297,0.00035672,120]
[426700201,1782750650000,-25000.0,0.00035713,3]
[426700198,1782750650000,-2336.0,0.000357,11]
[426700197,1782750650000,-2336.0,0.00035689,11]
[426700206,1782750650000,-160.0,0.0003572,11]
[426700204,1782750650000,-11737.97124079,0.00035713,3]
[426700191,1782750650000,-500.0,0.00035661,120]
[426700207,1782750650000,-834.51496197,0.00035775,2]
[426700210,1782750650000,-2336.0,0.00035868,11]
[426700213,1782750650000,-3565.0,0.00035877,2]
[426700211,1782750650000,-1230.0,0.00035877,2]
[426700199,1782750650000,-150.0,0.00035702,2]
[426700234,1782750651000,-1048.84,0.00026224,7]
[426700232,1782750651000,-2731.75803672,0.00035454,7]
[426700230,1782750651000,-3384.22,0.00031399,7]
[426700233,1782750651000,-3754.62428053,0.00023547,2]
[426700231,1782750651000,-300.0,0.00033771,2]
[426700235,1782750651000,-4688.22,0.00027397,10]
[426700237,1782750651000,-3008.8,0.000282,7]
[426700238,1782750651000,-249.76886183,0.000299,2]
[426700239,1782750651000,-31609.30838653,0.00030746,2]
[426700236,1782750651000,-3008.8,0.000274,7]
[426700243,1782750653000,-320.89943504,0.0002701,7]
[426700241,1782750653000,-567.31671789,0.00030746,2]
[426700242,1782750653000,-617.30538242,0.00030746,2]
[426700240,1782750653000,-20.23123571,0.00030746,2]
[426700251,1782750654000,-292.98,0.0002758,7]
[426700255,1782750654000,-292.98,0.00027702,30]
[426700257,1782750654000,-772.43,0.00027711,7]
[426700258,1782750654000,-678.45,0.00027711,7]
[426700253,1782750654000,-292.98,0.00027641,2]
[426700249,1782750654000,-772.43,0.0002755,30]
[426700261,1782750654000,-292.98,0.00027794,30]
[426700246,1782750654000,-696.47056496,0.0002701,7]
[426700250,1782750654000,-678.45,0.0002755,30]
[426700248,1782750654000,-562.76,0.0002755,30]
[426700247,1782750654000,-292.98,0.0002755,2]
[426700244,1782750654000,-2380.60569187,0.0002578,2]
[426700245,1782750654000,-1374.01858866,0.0002578,2]
[426700259,1782750654000,-292.98,0.00027733,2]
[426700260,1782750654000,-292.98,0.00027763,7]
[426700252,1782750654000,-292.98,0.00027611,30]
[426700273,1782750654000,-562.76,0.00028355,2]
[426700256,1782750654000,-562.76,0.00027711,7]
[426700275,1782750654000,-678.45,0.00028355,2]
[426700274,1782750654000,-772.43,0.00028355,2]
[426700270,1782750654000,-562.76,0.00028194,7]
[426700272,1782750654000,-678.45,0.00028194,7]
[426700268,1782750654000,-772.43,0.00028033,30]
[426700265,1782750654000,-772.43,0.00027872,2]
[426700266,1782750654000,-678.45,0.00027872,2]
[426700254,1782750654000,-292.98,0.00027672,7]
[426700267,1782750654000,-562.76,0.00028033,30]
[426700271,1782750654000,-772.43,0.00028194,7]
[426700269,1782750654000,-678.45,0.00028033,30]
[426700262,1782750654000,-985.91,0.00027797,7]
[426700276,1782750654000,-11098.03024147,0.000284,2]
[426700263,1782750654000,-292.98,0.00027824,2]
[426700264,1782750654000,-562.76,0.00027872,2]
[426700277,1782750673000,-500.0,0.00014898,2]
[426700279,1782750726000,-2847.47573457,0.00014514,2]
[426700280,1782750739000,-2847.47573457,0.00013598,2]
[426700282,1782750752000,-6215.10413544,0.00013598,2]
[426700283,1782750766000,-6215.10413544,0.00013598,2]
[426700284,1782750781000,-1203.81196405,0.00013598,2]
[426700285,1782750893000,-4713.728,0.00013326,2]
[426700288,1782750946000,-386.511,0.00013326,2]
[426700289,1782751000000,-150.0,0.00013596,2]
[426700293,1782751017000,-352.18,0.0002755,30]
[426700291,1782751017000,-434.36,0.0002755,30]
[426700292,1782751017000,-705.14,0.0002755,30]
[426700290,1782751017000,-479.06,0.0002755,30]
[426700294,1782751017000,-493.07,0.0002755,30]
[426700295,1782751018000,-642.35,0.0002755,30]
[426700296,1782751018000,-168.11328063,0.00027583,30]
[426700297,1782751018000,-238.52,0.00027611,30]
[426700298,1782751018000,-310.9,0.00027611,30]
[426700299,1782751018000,-238.52,0.00027702,30]
[426700302,1782751018000,-310.9,0.00027794,30]
[426700301,1782751018000,-238.52,0.00027794,30]
[426700303,1782751018000,-238.52,0.00027885,30]
[426700300,1782751018000,-310.9,0.00027702,30]
[426700306,1782751018000,-310.9,0.00027977,30]
[426700313,1782751018000,-238.52,0.00028068,30]
[426700312,1782751018000,-642.35,0.00028033,30]
[426700311,1782751018000,-493.07,0.00028033,30]
[426700310,1782751018000,-352.18,0.00028033,30]
[426700304,1782751018000,-310.9,0.00027885,30]
[426700307,1782751018000,-479.06,0.00028033,30]
[426700308,1782751018000,-434.36,0.00028033,30]
[426700305,1782751018000,-238.52,0.00027977,30]
[426700309,1782751018000,-705.14,0.00028033,30]
[426700322,1782751019000,-176.0,0.0002977,30]
[426700315,1782751019000,-155.0,0.0002877,30]
[426700316,1782751019000,-176.0,0.0002877,30]
[426700317,1782751019000,-158.0,0.0002877,30]
[426700318,1782751019000,-426.0,0.0002877,30]
[426700319,1782751019000,-323.09,0.00029217,120]
[426700320,1782751019000,-319.55,0.00029217,120]
[426700321,1782751019000,-155.0,0.0002977,30]
[426700314,1782751019000,-310.9,0.00028068,30]
[426700323,1782751019000,-158.0,0.0002977,30]
[426700325,1782751019000,-319.55,0.00030039,120]
[426700326,1782751019000,-540.95133191,0.00030137,120]
[426700327,1782751019000,-1195.58,0.000305,30]
[426700329,1782751019000,-176.0,0.0003077,30]
[426700328,1782751019000,-155.0,0.0003077,30]
[426700331,1782751019000,-319.57,0.00030861,120]
[426700330,1782751019000,-323.09,0.00030861,120]
[426700332,1782751019000,-1195.58,0.00030925,30]
[426700324,1782751019000,-323.09,0.00030039,120]
[426700339,1782751020000,-1195.58,0.000322,30]
[426700338,1782751020000,-1195.58,0.00031775,30]
[426700337,1782751020000,-176.0,0.0003177,30]
[426700333,1782751020000,-1195.58,0.0003135,30]
[426700335,1782751020000,-323.09,0.00031683,120]
[426700334,1782751020000,-685.34,0.00031366,60]
[426700336,1782751020000,-155.0,0.0003177,30]
[426700340,1782751020000,-323.09,0.00032505,120]
[426700342,1782751020000,-176.0,0.0003277,30]
[426700344,1782751020000,-511.94,0.00033176,30]
[426700349,1782751020000,-176.0,0.0003377,30]
[426700350,1782751020000,-158.71,0.00033778,120]
[426700347,1782751020000,-149774.0,0.0003367,30]
[426700341,1782751020000,-162.40577252,0.0003277,30]
[426700345,1782751020000,-323.09,0.00033327,120]
[426700346,1782751020000,-2674.49,0.000334,30]
[426700343,1782751020000,-2936.37,0.000331,30]
[426700348,1782751020000,-1015.07,0.00033688,30]
[426700358,1782751021000,-368.51,0.000339,120]
[426700351,1782751021000,-500.0,0.0003379,60]
[426700352,1782751021000,-500.0,0.0003379,60]
[426700353,1782751021000,-500.0,0.0003379,60]
[426700354,1782751021000,-533.2822586,0.0003379,60]
[426700355,1782751021000,-372.5023923,0.0003379,60]
[426700356,1782751021000,-305.1348987,0.0003379,60]
[426700359,1782751021000,-2936.37,0.000339,30]
[426700357,1782751021000,-352.8326883,0.0003379,60]
[426700360,1782751021000,-323.09,0.00034149,120]
[426700362,1782751021000,-2674.49,0.000344,30]
[426700368,1782751021000,-186.83,0.00034892,60]
[426700363,1782751021000,-176.0,0.0003477,30]
[426700365,1782751021000,-186.83,0.00034792,60]
[426700364,1782751021000,-149774.0,0.0003478,30]
[426700366,1782751021000,-192.27096766,0.000348,120]
[426700367,1782751021000,-392.34954085,0.000348,120]
[426700369,1782751021000,-323.09,0.00034971,120]
[426700361,1782751021000,-198.03,0.00034334,120]
[426700371,1782751022000,-2936.37,0.00035,30]
[426700370,1782751022000,-186.84,0.00034992,60]
[426700372,1782751022000,-179.3,0.0003542,30]
[426700373,1782751022000,-100000.0,0.00035455,90]
[426700377,1782751022000,-463.0,0.00035487,30]
[426700376,1782751022000,-1000.0,0.00035455,120]
[426700375,1782751022000,-69890.74244101,0.00035455,30]
[426700378,1782751022000,426.0,0.0002977,30]
[426700379,1782751022000,1543.53831518,0.00035616,30]
[426700374,1782751022000,-37794.80781514,0.00035455,60]
[426700381,1782751023000,373.26,0.0002755,30]
[426700380,1782751023000,426.0,0.0003077,30]
[426700382,1782751023000,450.54,0.0002755,30]
[426700387,1782751023000,622.75,0.00028033,30]
[426700384,1782751023000,426.0,0.0003177,30]
[426700386,1782751023000,373.26,0.00028033,30]
[426700383,1782751023000,622.75,0.0002755,30]
[426700385,1782751023000,450.54,0.00028033,30]
[426700391,1782751024000,250.19,0.00027611,30]
[426700390,1782751024000,426.0,0.0003477,30]
[426700389,1782751024000,426.0,0.0003377,30]
[426700388,1782751024000,426.0,0.0003277,30]
[426700392,1782751025000,250.19,0.00027702,30]
[426700393,1782751026000,250.19,0.00027794,30]
[426700394,1782751027000,250.19,0.00027885,30]
[426700396,1782751028000,250.19,0.00027977,30]
[426700395,1782751028000,205.06990361,0.000348,120]
[426700397,1782751029000,250.19,0.00028068,30]
[426700399,1782751036000,500.0,0.0003379,60]
[426700398,1782751036000,20605.55212155,0.00035455,90]
[426700400,1782751037000,516.6411293,0.0003379,60]
[426700401,1782751040000,185.12276497,0.00035438,30]
[426700402,1782751041000,1872.15,0.000334,30]
[426700403,1782751041000,185.12276497,0.00035438,30]
[426700404,1782751042000,185.12276497,0.00035438,30]
[426700409,1782751053000,520.0,0.00035438,30]
[426700408,1782751053000,185.12276497,0.00035438,30]
[426700407,1782751053000,1872.15,0.00035,30]
[426700406,1782751053000,185.12276497,0.00035438,30]
[426700405,1782751053000,-164.7067138,0.00013596,2]
[426700410,1782751054000,500.0,0.00035438,30]
[426700411,1782751054000,185.12276497,0.00035438,30]
[426700417,1782751054000,559.19188,0.00035438,30]
[426700413,1782751054000,500.0,0.00035438,30]
[426700415,1782751054000,1000.0,0.00035438,30]
[426700414,1782751054000,518.5,0.00035438,30]
[426700416,1782751054000,185.12276497,0.00035438,30]
[426700412,1782751054000,539.24,0.00035438,30]
[426700418,1782751054000,537.6845,0.00035438,30]
[426700420,1782751054000,185.12276497,0.00035438,30]
[426700421,1782751054000,579.88197956,0.00035438,30]
[426700422,1782751054000,557.5788265,0.00035438,30]
[426700423,1782751054000,1000.0,0.00035438,30]
[426700424,1782751054000,185.12276497,0.00035438,30]
[426700425,1782751054000,601.3376128,0.00035438,30]
[426700419,1782751054000,1000.0,0.00035438,30]
[426700427,1782751055000,1000.0,0.00035438,30]
[426700426,1782751055000,578.20924308,0.00035438,30]
[426700428,1782751055000,185.12276497,0.00035438,30]
[426700429,1782751055000,623.58710447,0.00035438,30]
[426700430,1782751055000,599.60298507,0.00035438,30]
[426700431,1782751055000,1000.0,0.00035438,30]
[426700432,1782751055000,185.12276497,0.00035438,30]
[426700434,1782751055000,1000.0,0.00035438,30]
[426700436,1782751055000,185.12276497,0.00035438,30]
[426700435,1782751055000,646.65982734,0.00035438,30]
[426700437,1782751055000,504.2741242,0.00035435,31]
[426700438,1782751055000,350.59022529,0.00035438,30]
[426700433,1782751055000,399.26809517,0.00035438,30]
[426700441,1782751056000,1000.0,0.00035438,30]
[426700439,1782751056000,1000.0,0.00035438,30]
[426700440,1782751056000,185.12276497,0.00035438,30]
[426700442,1782751056000,185.12276497,0.00035438,30]
[426700447,1782751056000,185.12276497,0.00035438,30]
[426700444,1782751056000,185.12276497,0.00035438,30]
[426700445,1782751056000,185.12276497,0.00035438,30]
[426700446,1782751056000,185.12276497,0.00035438,30]
[426700443,1782751056000,1044.30601253,0.00035438,30]
[426700449,1782751057000,5000.0,0.00035616,30]
[426700448,1782751057000,185.12276497,0.00035438,30]
[426700450,1782751107000,-166.66,0.00013437,2]